{"text_format":"1","workbook":"xlsx","n_sheets":12,"sheets":["1. Forside","2. Samlet prisloft","3. Driftsomkostninger","4. Historiske investeringer","5. Gennemførte investeringer","6. Korrektion investeringer","7. Planlagte investeringer","8. 1-1 omkostninger","9. Miljø- og servicemål","10. Nettofinansielle poster","11. Over- eller underdækning","12. Kontrol med indtægtsrammen"],"not_rendered":{"charts":0,"images":0,"macros":1,"external_links":0,"defined_names":0,"comments":0,"pivot_tables":0},"unopened":[],"bounds":{"document_bytes":16777216,"sheet_cells":100000,"rows_first":2000,"rows_last":500,"rows_between":2000,"halvings":0,"cell_chars":16384,"cell_head_chars":4096},"cells_cut":0,"cells_raw":0,"read":"whole","date_system":"1900"}

{"sheet":"1. Forside","index":0,"n_rows":26,"n_cols":4,"rows_kept":26,"cut":false,"hidden":false,"merged":[[20,3,20,5],[19,3,19,5],[18,3,18,5],[7,3,7,5],[12,3,12,5],[15,3,15,5],[16,3,16,5],[17,3,17,5],[25,3,25,5],[24,3,24,5],[23,3,23,5],[22,3,22,5],[21,3,21,5]]}
["TREFOR Vand A/S"]
[]
[]
[]
[]
[]
[]
[null,null,null,"Bilag A"]
[]
[]
[]
[]
[null,null,null,"Indholdsfortegnelse"]
[]
[]
[null,null,"Fane nr. 2","Samlet prisloft "]
[null,null,"Fane nr. 3","Driftsomkostninger"]
[null,null,"Fane nr. 4","Historiske investeringer "]
[null,null,"Fane nr. 5","Gennemførte investeringer"]
[null,null,"Fane nr. 6","Korrektion investeringer"]
[null,null,"Fane nr. 7","Planlagte investeringer"]
[null,null,"Fane nr. 8","1:1 omkostninger"]
[null,null,"Fane nr. 9","Miljø- og servicemål"]
[null,null,"Fane nr. 10","Nettofinansielle poster"]
[null,null,"Fane nr. 11","Over- eller underdækning"]
[null,null,"Fane nr. 12","Kontrol med indtægtsrammen og oversigt over ekstraordinære effektiviseringsgevinster"]

{"sheet":"2. Samlet prisloft","index":1,"n_rows":38,"n_cols":6,"rows_kept":38,"cut":false,"hidden":false,"merged":[[3,1,3,5]]}
[{"$f":"'1. Forside'!A1","v":"TREFOR Vand A/S"}]
[]
[]
[null,"Fane 2. Samlet prisloft for 2015"]
[]
[null,"Driftsomkostninger"]
[null,"Driftsomkostninger i prisloftet for 2014",{"$f":"'3. Driftsomkostninger'!C20","v":54399006.634999998},"kr."]
[null,"Bortfald af væsentlige omkostninger",{"$f":"-'3. Driftsomkostninger'!C16","v":0},"kr."]
[null,"Korrektion for prisudviklingen 2014-2015",{"$f":"'3. Driftsomkostninger'!C22","v":43519.205307999997},"kr."]
[null,"Forhøjelse til effektivt niveau iht. benchmarkingen",{"$f":"'3. Driftsomkostninger'!C28","v":0},"kr."]
[null,"Korrektion for generelt effektiviseringskrav",{"$f":"-'3. Driftsomkostninger'!C34","v":-239355.62919400001},"kr."]
[null,"Korrektion for individuelt effektiviseringskrav",{"$f":"-'3. Driftsomkostninger'!C43","v":-1121979.5},"kr."]
[null,"Driftsomkostninger i alt",{"$f":"SUM(C7:C12)","v":53081190.711113997},"kr.",{"$f":"C13","v":53081190.711113997}," kr."]
[null,"Investeringer"]
[null,"Tillæg for historiske investeringer",{"$f":"'4. Historiske investeringer'!C9","v":64713957.299255498},"kr."]
[null,"Tillæg for gennemførte investeringer i 2011-2013",{"$f":"'5. Gennemførte investeringer'!F35","v":13474431.123333335},"kr."]
[null,"Korrektion af tillæg for planlagte investeringer vedrørende 2013  ",{"$f":"'6. Korrektion investeringer'!C10","v":-609711.24666666612},"kr."]
[null,"Tillæg for planlagte investeringer i 2014 og 2015",{"$f":"'7. Planlagte investeringer'!F36","v":6783180},"kr."]
[null,"Investeringstillæg i alt",{"$f":"SUM(C15:C18)","v":84361857.175922155},"kr.",{"$f":"C19","v":84361857.175922155}," kr."]
[null,"Øvrige omkostninger mv."]
[null,"Tillæg for 1:1 omkostninger i 2015",{"$f":"'8. 1-1 omkostninger'!C9","v":433000},"kr."]
[null,"Tillæg for afgift for ledningsført vand i 2015",{"$f":"'8. 1-1 omkostninger'!C14","v":71143815},"kr."]
[null,"Tillæg vedr. revisorerklæringer og DANVA/FVD-kontingent",{"$f":"'8. 1-1 omkostninger'!C20","v":260000},"kr."]
[null,"Korrektion ift. faktiske 1:1 omkostninger i 2013",{"$f":"'8. 1-1 omkostninger'!C26","v":450441},"kr."]
[null,"Tillæg for driftsomkostninger til miljø- og servicemål i 2015",{"$f":"'9. Miljø- og servicemål'!C13","v":14394706},"kr."]
[null,"Korrektion ift. faktiske driftsomkostninger til miljø- og servicemål i 2013",{"$f":"'9. Miljø- og servicemål'!C20","v":0},"kr."]
[null,"Tillæg/fradrag for nettofinansielle poster i 2015",{"$f":"'10. Nettofinansielle poster'!C9","v":10428000},"kr."]
[null,"Korrektion ift. faktiske nettofinansielle poster i 2013",{"$f":"'10. Nettofinansielle poster'!C16","v":2897000},"kr."]
[null,"Øvrige omkostninger mv. i alt",{"$f":"SUM(C21:C28)","v":100006962},"kr.",{"$f":"C29","v":100006962}," kr."]
[null,"Historisk over- eller underdækning"]
[null,"Tillæg/fradrag for over- eller underdækning til og med 2010",{"$f":"'11. Over- eller underdækning'!C11","v":3887388.8756613755},"kr.",{"$f":"C31","v":3887388.8756613755}," kr."]
[null,"Korrektion i forhold til tidligere indtægtsramme "]
[null,"Korrektion for overholdelse af indtægtsramme i prisloft 2013",{"$f":"'12. Kontrol med indtægtsrammen'!E27","v":85427169.033298373},"kr.",{"$f":"C33","v":85427169.033298373}," kr."]
[null,"Samlet prisloft"]
[null,"Indtægtsramme i 2015 ",null,null,{"$f":"SUM(E13:E33)","v":326764567.79599589}," kr."]
[null,"Debiteret vandmængde i 2013",null,null,10894918," m3"]
[null,"Prisloft 2015",null,null,{"$f":"E35/E36","v":29.992384320469039}," kr./m3"]
[null,"Prisloft 2015 ekskl. afgift for ledningsført vand ",null,null,{"$f":"(E35-C22)/E36","v":23.462384278247519}," kr./m3"]

{"sheet":"3. Driftsomkostninger","index":2,"n_rows":43,"n_cols":4,"rows_kept":43,"cut":false,"hidden":false,"merged":[[3,1,3,3]]}
[{"$f":"'1. Forside'!A1","v":"TREFOR Vand A/S"}]
[]
[]
[null,"Fane 3. Driftsomkostninger "]
[]
[null,"Driftsomkostningerne i prisloftet for 2014"]
[null,"Korrigerede driftsomkostninger i prisloftet for 2013 (DOiPL 2013)",55272309,"kr."]
[null,"Prisfremskrivning 1,5 pct.",{"$f":"0.015*SUM(C7:C7)","v":829084.63500000001},"kr."]
[null,"Generelt effektiviseringskrav (0 pct.)",0,"kr."]
[null,"Individuelt effektiviseringskrav ",-1702387,"kr."]
[null,"Driftsomkostningerne i prisloftet for 2014 (DOiPL 2014)",{"$f":"SUM(C7:C10)","v":54399006.634999998},"kr."]
[]
[]
[null,"Korrektion for forventet bortfald af væsentlige omkostninger"]
[null,"Selskabets indberettede bortfald af væsentlige omkostninger inden 2015",0,"kr."]
[null,"Korrektion for forventet bortfald ",{"$f":"SUM(C15:C15)","v":0},"kr."]
[]
[]
[null,"Korrektion for prisudviklingen fra 2014-2015"]
[null,"Driftsomkostningerne i prisloftet for 2014",{"$f":"C11-C16","v":54399006.634999998},"kr."]
[null,"Prisudvikling 2014 - 2015 ",0.08,"pct."]
[null,"Korrektion for prisudvikling",{"$f":"C20*(C21/100)","v":43519.205307999997},"kr."]
[]
[]
[null,"Eventuel forhøjelse til effektivt niveau iht. benchmarkingen"]
[null,"Selskabets effektive driftsomkostninger iht. benchmarkingen",41408524,"kr."]
[null,"Selskabets pristalskorrigerede driftsomkostninger i 2015-niveau",{"$f":"C20+C22","v":54442525.840307996},"kr."]
[null,"Eventuel forhøjelse til effektivt niveau",{"$f":"IF(C27>C26,0,C26-C27)","v":0},"kr."]
[]
[]
[null,"Korrektion for generelt effektiviseringskrav"]
[null,"Driftsomkostningerne i prisloftet for 2014",{"$f":"C20","v":54399006.634999998},"kr. "]
[null,"Generelt effektiviseringskrav ",0.44,"pct."]
[null,"Endeligt generelt effektiviseringskrav",{"$f":"C32*(C33/100)","v":239355.62919400001},"kr. "]
[]
[]
[null,"Korrektion for individuelt effektiviseringskrav"]
[null,"Rå effektiviseringspotentiale",12990483,"kr."]
[null,"Effektiviseringspotentiale efter eventuel korrektion for særlige forhold",12990483,"kr."]
[null,"Effektiviseringspotentiale efter forsigtighedshensyn",4487918,"kr."]
[null,"Effektiviseringspotentiale efter eventuel korrektion for sammensætning af signifikante costdrivere",4487918,"kr. "]
[null,"Umiddelbart effektiviseringskrav",{"$f":"C41/4","v":1121979.5},"kr."]
[null,"Endeligt individuelt effektiviseringskrav",{"$f":"IF(C42>0.05*C20,0.05*C20,IF(C42<0.01*C20,0,C42))","v":1121979.5},"kr. "]

{"sheet":"4. Historiske investeringer","index":3,"n_rows":9,"n_cols":4,"rows_kept":9,"cut":false,"hidden":false,"merged":[[3,1,3,2]]}
[{"$f":"'3. Driftsomkostninger'!A1","v":"TREFOR Vand A/S"}]
[]
[]
[null,"Fane 4. Historiske investeringer "]
[]
[null,"Tillæg for historiske investeringer "]
[null,"Værdi af selskabets materielle anlægsaktiver pr. 1. januar 2010",1661948530.2509589,"kr."]
[null,"Den årlige standardafskrivning på de materielle anlægsaktiver iht. POLKA",64713957.299255498,"kr."]
[null,"Tillæg i alt i 2015",{"$f":"C8","v":64713957.299255498},"kr."]

{"sheet":"5. Gennemførte investeringer","index":4,"n_rows":35,"n_cols":7,"rows_kept":35,"cut":false,"hidden":false,"merged":[[3,1,3,5],[6,5,6,6]]}
[{"$f":"'4. Historiske investeringer'!A1","v":"TREFOR Vand A/S"}]
[]
[]
[null,"Fane 5. Gennemførte investeringer i 2010 - 2013 "]
[]
[null,"Tillæg for gennemførte investeringer i 2013"]
[null," Beskrivelse af investeringen   ","Årstal ","Std. levetid (år)   "," Anskaffelses-pris (kr.)","Afskrivning "]
[null,"Boring (inkl. etablering, forerør, filter og prøvepumpning)",2013,30,589664,{"$f":"E8/D8","v":19655.466666666667},"kr."]
[null,"Instrumenter (flowmåler+tryk transducer+alarmer)",2013,10,127329,12732.9,"kr."]
[null,"Pumpe inkl. stigrør og forerørsforsejlinger mv.",2013,15,415134,27675.599999999999,"kr."]
[null,"Elanlæg",2013,20,387733,19386.650000000001,"kr."]
[null,"Råvandsstation komplet montering og boringshus/tørbrønd",2013,30,984558,32818.6,"kr."]
[null,"Ø 50mm < Ledningsnet = Ø110 mm",2013,75,1972787,{"$f":"E13/D13","v":26303.826666666668},"kr."]
[null,"Ø110 mm < Ledningsnet = Ø 250 mm",2013,75,723505,9646.7333333333336,"kr."]
[null,"Ø 250 mm < Ledningsnet = Ø 500mm",2013,75,25283,337.10666666666668,"kr."]
[null,"SRO-anlæg, vandværk",2013,10,1129947,112994.7,"kr."]
[null,"Elanlæg - vandværk",2013,25,2162631,86505.24,"kr."]
[null,"Skyllevand-/slamhåndteringsanlæg - lukkede betonbeholdere",2013,50,8624096,172481.92000000001,"kr."]
[null,"Sikring, avanceret (hegne, porte og overvågningssystemer), Mek./EL",2013,25,419754,16790.16,"kr."]
[null,"Ø 50mm < Ledningsnet = Ø110 mm",2013,75,4206252,56083.360000000001,"kr."]
[null,"Ø110 mm < Ledningsnet = Ø 250 mm",2013,75,43013129,573508.38666666672,"kr."]
[null,"Ø 250 mm < Ledningsnet = Ø 500mm",2013,75,4658352,62111.360000000001,"kr."]
[null,"Ventiler på Ø 50mm < Ledningsnet = Ø110 mm",2013,75,87333,1164.44,"kr."]
[null,"Pumpestation (inkl. evt. hydrofor)/trykforøger, SRO",2013,10,343740,34374,"kr."]
[null,"Pumpestation (inkl. evt. hydrofor)/trykforøger, Mek./EL",2013,25,157746,6309.84,"kr."]
[null,"Pumpestation (inkl. evt. hydrofor)/trykforøger, Konstruktioner",2013,50,59375,1187.5,"kr."]
[null,"Afregningsmålere, elektroniske = Ø 110mm (Qn 10)",2013,10,6391778,639177.80000000005,"kr."]
[null,"SRO-brønd/kvarterbrønd/sektionsbrønd, SRO",2013,10,520328,52032.800000000003,"kr."]
[null,"SRO-brønd/kvarterbrønd/sektionsbrønd, Mek./EL",2013,15,1271179,84745.266666666663,"kr."]
[null,"SRO-brønd/kvarterbrønd/sektionsbrønd, Konstruktioner",2013,50,4964558,99291.16,"kr."]
[null,"Etageareal vandbehandlingsbygning",2013,75,501987,6693.16,"kr."]
[null,"Etageareal vandbehandlingsbygning",2013,30,189792,6326.4,"kr."]
[null,"Tillæg for 2013 ",null,null,null,{"$f":"SUM(F8:F32)","v":2160334.3766666669},"kr."]
[null,"Tillæg for 2010 - 2012",null,null,null,11314096.746666668,"kr."]
[null,"Samlet tillæg for gennemførte investeringer",null,null,null,{"$f":"F33+F34","v":13474431.123333335},"kr."]

{"sheet":"6. Korrektion investeringer","index":5,"n_rows":10,"n_cols":4,"rows_kept":10,"cut":false,"hidden":false,"merged":[[3,1,3,3]]}
[{"$f":"'5. Gennemførte investeringer'!A1","v":"TREFOR Vand A/S"}]
[]
[]
[null,"Fane 6. Korrektion af tillæg for planlagte investeringer"]
[]
[null,"Korrektion af tillæg for planlagte investeringer vedr. 2013"]
[null,"Tillæg for planlagte investeringer i 2013 i prisloft 2013",1867570,"kr."]
[null,"Tillæg for planlagte investeringer i 2013 i prisloft 2014",3062810,"kr."]
[null,"Selskabets faktiske afskrivninger på gennemførte investeringer i 2013",{"$f":"'5. Gennemførte investeringer'!F33","v":2160334.3766666669},"kr."]
[null,"Korrektion af tillæg for planlagte investeringer vedr. 2013",{"$f":"C9-C7+C9-C8","v":-609711.24666666612},"kr."]

{"sheet":"7. Planlagte investeringer","index":6,"n_rows":36,"n_cols":7,"rows_kept":36,"cut":false,"hidden":false,"merged":[[6,5,6,6],[3,1,3,6]]}
[{"$f":"'6. Korrektion investeringer'!A1","v":"TREFOR Vand A/S"}]
[]
[]
[null,"Fane 7. Planlagte investeringer "]
[]
[null,"Tillæg for planlagte investeringer i 2014 og 2015"]
[null,"Beskrivelse af investeringen   ","Årstal ","Std. levetid (år)   ","Anskaffelses-pris (kr.)   ","Afskrivning"]
[null,"Råvandsstation komplet montering og boringshus/tørbrønd",2014,30,7817000,{"$f":"E8/D8","v":260566.66666666666},"kr."]
[null,"Pumpe inkl. stigrør og forerørsforsejlinger mv.",2014,15,1790000,{"$f":"E9/D9","v":119333.33333333333},"kr."]
[null,"Boring (inkl. etablering, forerør, filter og prøvepumpning)",2014,30,9000000,{"$f":"E10/D10","v":300000},"kr."]
[null,"Elanlæg",2014,20,1312000,65600,"kr."]
[null,"SRO anlæg",2014,10,4998000,499800,"kr."]
[null,"Ø 50mm < Ledningsnet = Ø110 mm",2014,75,1134000,15120,"kr."]
[null,"Etageareal vandbehandlingsbygning",2014,75,2146000,28613.333333333332,"kr."]
[null,"Elanlæg - vandværk",2014,25,5150000,206000,"kr."]
[null,"Skyllevand-/slamhåndteringsanlæg - lukkede betonbeholdere",2014,50,2532000,50640,"kr."]
[null,"Udpumpningsanlæg, rentvandspumper på vandværk",2014,25,3020000,120800,"kr."]
[null,"Ø 50mm < Ledningsnet = Ø110 mm",2014,75,94000000,1253333.3333333333,"kr."]
[null,"Afregningsmålere, elektroniske = Ø 110mm (Qn 10)",2014,10,1658000,165800,"kr."]
[null,"Køretøjer, personbil",2014,5,300000,60000,"kr."]
[null,"Råvandsstation komplet montering og boringshus/tørbrønd",2015,30,7817000,260566.66666666666,"kr."]
[null,"Pumpe inkl. stigrør og forerørsforsejlinger mv.",2015,15,1790000,119333.33333333333,"kr."]
[null,"Boring (inkl. etablering, forerør, filter og prøvepumpning)",2015,30,7733000,257766.66666666666,"kr."]
[null,"Elanlæg",2015,20,1312000,65600,"kr."]
[null,"SRO anlæg",2015,10,4998000,499800,"kr."]
[null,"Ø 50mm < Ledningsnet = Ø110 mm",2015,75,1134000,15120,"kr."]
[null,"Etageareal vandbehandlingsbygning",2015,75,2146000,28613.333333333332,"kr."]
[null,"Elanlæg - vandværk",2015,25,5150000,206000,"kr."]
[null,"Skyllevand-/slamhåndteringsanlæg - lukkede betonbeholdere",2015,50,2532000,50640,"kr."]
[null,"Udpumpningsanlæg, rentvandspumper på vandværk",2015,25,3020000,120800,"kr."]
[null,"Ø 50mm < Ledningsnet = Ø110 mm",2015,75,95500000,1273333.3333333333,"kr."]
[null,"Afregningsmålere, elektroniske = Ø 110mm (Qn 10)",2015,10,6800000,680000,"kr."]
[null,"Køretøjer, personbil",2015,5,300000,60000,"kr."]
[null,"Tillæg for 2014",null,null,null,{"$f":"SUMIF(C8:C33,\"2014\",F8:F33)","v":3145606.6666666665},"kr."]
[null,"Tillæg for 2015",null,null,null,{"$f":"SUMIF(C8:C33,\"2015\",F8:F33)","v":3637573.333333333},"kr."]
[null,"Tillæg i alt",null,null,null,{"$f":"F34+F35","v":6783180},"kr."]

{"sheet":"8. 1-1 omkostninger","index":7,"n_rows":26,"n_cols":4,"rows_kept":26,"cut":false,"hidden":false,"merged":[[3,1,3,3],[16,1,16,3],[22,1,22,3]]}
[{"$f":"'7. Planlagte investeringer'!A1","v":"TREFOR Vand A/S"}]
[]
[]
[null,"Fane 8. 1:1 omkostninger"]
[]
[null,"Tillæg for budgetterede 1:1 omkostninger i 2015"]
[null,"Betaling til Forsyningssekretariatet",33000,"kr."]
[null,"Ejendomsskatter",400000,"kr."]
[null,"Tillæg i alt ",{"$f":"SUM(C7:C8)","v":433000},"kr."]
[]
[]
[null,"Tillæg for afgift for ledningsført vand i 2015"]
[null,"Afgift for ledningsført vand (6,53 kr./m3)",71143815,"kr."]
[null,"Tillæg i alt ",{"$f":"SUM(C13:C13)","v":71143815},"kr."]
[]
[]
[null,"Tillæg for budgetterede nødvendige udgifter til revisorerklæringer samt ordinært medlemskab af DANVA og FVD i 2015"]
[null,"Betaling for ordinært medlemskab af DANVA/FVD",210000,"kr."]
[null,"Betaling for revisorerklæringer",50000,"kr."]
[null,"Tillæg i alt ",{"$f":"SUM(C18:C19)","v":260000},"kr."]
[]
[]
[null,"Korrektion af tillæg for faktiske 1:1 omkostninger (inkl. afgift for ledningsført vand, revisorerklæringer og ordinært medlemskab af DANVA/FVD) i 2013"]
[null,"Selskabets faktiske 1:1 omkostninger mv. i 2013, jf. reguleringsregnskabet",71865441,"kr."]
[null,"Tillæg for budgetterede 1:1 omkostninger mv. i prisloft 2013",71415000,"kr."]
[null,"Korrektion af tillæg for budgetterede 1:1 omkostninger mv. i 2013",{"$f":"C24-C25","v":450441},"kr."]

{"sheet":"9. Miljø- og servicemål","index":8,"n_rows":20,"n_cols":4,"rows_kept":20,"cut":false,"hidden":false,"merged":[[3,1,3,3]]}
[{"$f":"'8. 1-1 omkostninger'!A1","v":"TREFOR Vand A/S"}]
[]
[]
[null,"Fane 9. Driftsomkostninger til miljø- og servicemål "]
[]
[null,"Tillæg for budgetterede driftsomkostninger til miljø- og servicemål i 2015"]
[null,"Grundvandsbeskyttelses/skovrejsning",3000000,"kr."]
[null,"VVM-redegørelse",4250000,"kr."]
[null,"Behandling af indsatsplan",4405000,"kr."]
[null,"DDS",500000,"kr."]
[null,"Overvågning af vandløb",415000,"kr."]
[null,"Fjernaflæsning",1824706,"kr."]
[null,"Tillæg i alt",{"$f":"SUM(C7:C12)","v":14394706},"kr."]
[]
[]
[]
[null,"Korrektion af tillæg for faktiske driftsomkostninger til miljø- og servicemål i 2013"]
[null,"Selskabets faktiske driftsomkostninger til miljø- og servicemål i 2013, jf. reguleringsregnskabet",0,"kr."]
[null,"Tillæg for budgetterede driftsomkostninger til miljø- og servicemål i prisloft 2013",0,"kr."]
[null,"Korrektion af tillæg for budgetterede driftsomkostninger til miljø- og servicemål i 2013",{"$f":"C18-C19","v":0},"kr."]

{"sheet":"10. Nettofinansielle poster","index":9,"n_rows":16,"n_cols":4,"rows_kept":16,"cut":false,"hidden":false,"merged":[[3,1,3,3]]}
[{"$f":"'2. Samlet prisloft'!A1","v":"TREFOR Vand A/S"}]
[]
[]
[null,"Fane 10. Nettofinansielle poster"]
[]
[null,"Tillæg for budgetterede nettofinansielle poster i 2015"]
[null,"Budgetterede renteudgifter og gebyrer i 2015",10453000,"kr."]
[null,"Budgetterede renteindtægter i 2015",25000,"kr."]
[null,"Tillæg/fradrag i alt",{"$f":"C7-C8","v":10428000},"kr."]
[]
[]
[]
[null,"Korrektion af tillæg for faktiske nettofinansielle poster i 2013"]
[null,"Selskabets faktiske nettofinansielle poster i 2013, jf. reguleringsregnskabet",11962000,"kr."]
[null,"Tillæg for budgetterede nettofinansielle poster i prisloft 2013",9065000,"kr."]
[null,"Korrektion af tillæg for budgetterede nettofinansielle poster i 2013",{"$f":"C14-C15","v":2897000},"kr."]

{"sheet":"11. Over- eller underdækning","index":10,"n_rows":11,"n_cols":4,"rows_kept":11,"cut":false,"hidden":false,"merged":[[3,1,3,3]]}
[{"$f":"'1. Forside'!A1","v":"TREFOR Vand A/S"}]
[]
[]
[null,"Fane 11. Over- eller underdækning til og med 2010"]
[]
[null,"Tillæg/fradrag for over- eller underdækning til og med 2010"]
[null,"Opgjort over- eller underdækning per 31. december 2010",39178000,"kr."]
[null,"Heraf beløb indregnet i prislofterne for 2011 - 2014",15853666.746031746,"kr."]
[null,"Endnu ikke indregnet over- eller underdækning",{"$f":"C7-C8","v":23324333.253968254},"kr."]
[null,"Resterende indregningsperiode (fastsat i prisloftet for 2012)",6,"år"]
[null,"Tillæg/fradrag i alt",{"$f":"IF(C7=0,0,C9/C10)","v":3887388.8756613755},"kr."]

{"sheet":"12. Kontrol med indtægtsrammen","index":11,"n_rows":38,"n_cols":12,"rows_kept":38,"cut":false,"hidden":false,"merged":[[3,1,3,5],[30,1,30,4],[5,1,5,5]]}
[{"$f":"'11. Over- eller underdækning'!A1","v":"TREFOR Vand A/S"}]
[]
[]
[null,"Fane 12. Korrektion for overholdelse af indtægtsrammen i prisloftet for 2013"]
[]
[null,"Samlet opgørelse vedrørende overholdelse af indtægtsrammen i prisloftet for 2013"]
[null,"Indtægtsramme i prisloftet for 2013",null,null,273877717.98760003,"kr."]
[null,"Ikke anvendt likviditet vedrørende investeringer i 2013"]
[null,"Tillæg for historiske investeringer ",65193210.954301655,"kr."]
[null,"Tillæg for gennemførte investeringer i 2011",8640531,"kr."]
[null,"Korrektion af tillæg for planlagte investeringer i 2011",2867399,"kr."]
[null,"Tillæg for planlagte investeringer i 2012 og 2013",4105430,"kr."]
[null,"Indtægter fra tilslutningsbidrag",5908000,"kr."]
[null,"Indtægter fra salg af anlægsaktiver",0,"kr."]
[null,"Erstatninger vedr. anlægsaktiver mv.",0,"kr."]
[null,"Ekstraordinær effektiviseringsgevinst anvendt til investeringer",{"$f":"E35","v":8873505},"kr."]
[null,"Udgifter til investeringer",-95588075,"kr."]
[null,"Ikke anvendt likviditet vedr. investeringer i alt",{"$f":"SUM(C9:C17)","v":0.95430165529251099},"kr.",{"$f":"IF(C18<0,0,-C18)","v":-0.95430165529251099},"kr."]
[null,"Ekstraordinære effektiviseringsgevinster anvendt til takstnedsættelse"]
[null,"Ekstraordinær effektiviseringsgevinst anvendt til takstnedsættelse",0,"kr.",{"$f":"-C20","v":0},"kr."]
[null,"Korrektion af ikke opkrævet tillæg fra 2011 i prisloft 2013"]
[null,"Korrektion af ikke opkrævet tillæg fra 2011 i prisloft 2013",0,"kr.",{"$f":"-C22","v":0},"kr."]
[null,"Indtægter fra primære aktiviteter mv."]
[null,"Indtægter fra kubikmetertakster, faste takster, særbidrag, målergebyrer samt andre takster og gebyrer",188450548,"kr."]
[null,"Andre indtægter i prisloftåret, som selskabet har opnået i forbindelse med eller som følge af selskabets primære aktiviteter",0,"kr."]
[null,"Indtægter fra primære aktiviteter mv. i alt",{"$f":"SUM(C24:C25)","v":188450548},"kr.",{"$f":"-C26","v":-188450548},"kr."]
[null,"Tillæg/fradrag i prisloftet for 2015 i alt",null,null,{"$f":"E7+E18+E20+E22+E26","v":85427169.033298373},"kr."]
[]
[]
[]
[null,"Oversigt over ekstraordinære effektiviseringsgevinster"]
[]
[null,null,2012,null,2013,null,2014,null,2015,null,2016]
[null,"Indhentet ekstraordinær effektiviseringsgevinst",5223601,"kr.",3649904,"kr.",null,"kr.",null,"kr.",null,"kr."]
[null,"Gevinst anvendt til investeringer",0,"kr.",{"$f":"E34+C34","v":8873505},"kr.",null,"kr.",null,"kr.",null,"kr."]
[null,"Gevinst anvendt til takstnedsættelse",0,"kr.",0,"kr.",null,"kr.",null,"kr.",null,"kr."]
[null,"Korrektion for  effektiviseringsgevinst der ikke er anvendt inden 4 år",0,"kr.",0,"kr.",null,"kr.",null,"kr.",{"$f":"IF(C38>SUM(C35:I36),C38-SUM(E35:I36),0)*-1","v":0},"kr."]
[null,"Resterende gevinst",{"$f":"C34-C35-C36","v":5223601},"kr.",{"$f":"C38+E34-E35-E36","v":0},"kr.",{"$f":"E38+G34-G35-G36","v":0},"kr.",{"$f":"G38+I34-I35-I36","v":0},"kr.",{"$f":"K34-K35-K36+K37","v":0},"kr."]